bitfinex-derivatives/quotes_BNBF0:USTF0_20250630
["timestamp","ask_amount","ask_price","bid_price","bid_amount"]
[1751266231955,1.4985416,653.83,653.43,3.766]
[1751266232255,1.4985416,653.82,653.43,3.766]
[1751266232456,1.4985416,653.81,653.43,3.766]
[1751266233163,1.4985416,653.8,653.43,3.766]
[1751266233361,0.26635745,653.94,653.43,3.766]
[1751266233362,1.4985416,653.76,653.43,3.766]
[1751266234163,1.4985416,653.75,653.43,3.766]
[1751266234363,1.4985416,653.74,653.43,3.766]
[1751266235361,1.4985416,653.73,653.43,3.766]
[1751266236160,0.26635745,653.94,653.43,3.766]
[1751266236161,1.4985416,653.72,653.43,3.766]
[1751266236661,1.4985416,653.7,653.43,3.766]
[1751266236965,2.2478241,653.88,653.43,3.766]
[1751266236966,1.4985416,653.71,653.43,3.766]
[1751266237164,1.4985416,653.62,653.43,3.766]
[1751266237465,1.4985416,653.61,653.43,3.766]
[1751266237665,1.4985416,653.64,653.43,3.766]
[1751266238060,2.2478241,653.79,653.43,3.766]
[1751266238061,1.4985416,653.62,653.43,3.766]
[1751266238262,1.4985416,653.61,653.43,3.766]
[1751266239166,1.4985416,653.59,653.43,3.766]
[1751266239462,1.4985416,653.69,653.43,3.766]
[1751266239864,1.4985416,653.68,653.43,3.766]
[1751266240261,0.26635745,653.94,653.43,3.766]
[1751266240262,1.4985416,653.67,653.43,3.766]
[1751266241167,1.4985416,653.65,653.43,3.766]
[1751266241367,1.4985416,653.66,653.43,3.766]
[1751266241868,1.4985416,653.65,653.43,3.766]
[1751266242269,1.4985416,653.69,653.43,3.766]
[1751266242470,1.4985416,653.68,653.43,3.766]
[1751266243168,1.4985416,653.66,653.43,3.766]
[1751266243666,1.4985416,653.69,653.43,3.766]
[1751266244270,1.4985416,653.68,653.43,3.766]
[1751266244466,1.4985416,653.67,653.43,3.766]
[1751266244668,1.4985416,653.68,653.3,4.806]
[1751266245167,1.4985416,653.63,653.3,4.806]
[1751266245770,1.4985416,653.64,653.3,4.806]
[1751266246374,1.4985416,653.58,653.3,4.806]
[1751266246670,1.4985416,653.52,653.3,4.806]
[1751266247270,1.4985416,653.5,653.3,4.806]
[1751266247769,1.4985416,653.51,653.3,4.806]
[1751266247970,1.4985416,653.52,653.3,4.806]
[1751266248268,1.4985416,653.5,653.3,4.806]
[1751266248666,1.4985416,653.51,653.3,4.806]
[1751266249268,1.4985416,653.49,653.3,4.806]
[1751266250166,1.4985416,653.47,653.3,4.806]
[1751266250671,1.4985416,653.52,653.3,4.806]
[1751266251171,1.4985416,653.52,653.11,3.968]
[1751266251469,1.4985416,653.53,653.11,3.968]
[1751266252068,1.4985416,653.55,653.11,3.968]
[1751266252272,1.4985416,653.54,653.11,3.968]
[1751266252874,1.4985416,653.55,653.11,3.968]
[1751266253271,1.4985416,653.56,653.11,3.968]
[1751266253771,1.4985416,653.55,653.11,3.968]
[1751266255074,1.4985416,653.54,653.11,3.968]
[1751266255276,1.4985416,653.54,653.12,2.956]
[1751266256174,1.4985416,653.53,653.12,2.956]
[1751266256574,1.4985416,653.52,653.12,2.956]
[1751266256972,1.4985416,653.49,653.12,2.956]
[1751266257373,1.4985416,653.46,653.12,2.956]
[1751266258078,1.4985416,653.45,653.12,2.956]
[1751266258879,1.4985416,653.41,653.12,2.956]
[1751266259380,1.4985416,653.4,653.12,2.956]
[1751266259579,1.4985416,653.38,653.12,2.956]
[1751266259775,1.4985416,653.39,653.12,2.956]
[1751266260182,1.4985416,653.38,653.12,2.956]
[1751266260475,1.4985416,653.39,653.12,2.956]
[1751266260682,1.4985416,653.38,653.12,2.956]
[1751266261079,1.4985416,653.35,653.12,2.956]
[1751266261284,1.4985416,653.33,653.12,2.956]
[1751266261682,1.4985416,653.36,653.12,2.956]
[1751266261885,1.4985416,653.37,653.12,2.956]
[1751266262181,1.4985416,653.33,653.12,2.956]
[1751266262386,1.4985416,653.32,653.12,2.956]
[1751266262682,0.26635745,653.94,653.12,2.956]
[1751266262683,1.4985416,653.35,653.12,2.956]
[1751266262887,1.4985416,653.38,653.12,2.956]
[1751266263082,1.4985416,653.43,653.12,2.956]
[1751266263588,1.4985416,653.41,653.12,2.956]
[1751266264285,1.4985416,653.39,653.12,2.956]
[1751266264685,0.26635745,653.94,653.12,2.956]
[1751266264686,1.4985416,653.37,653.12,2.956]
[1751266265085,1.4985416,653.34,653.12,2.956]
[1751266266096,1.4985416,653.33,653.12,2.956]
[1751266266296,1.4985416,653.3,653.12,2.956]
[1751266266596,1.4985416,653.25,653.12,2.956]
[1751266266997,1.4985416,653.27,653.12,2.956]
[1751266267197,1.4985416,653.33,653.12,2.956]
[1751266267995,1.4985416,653.35,653.12,2.956]
[1751266268898,1.4985416,653.36,653.12,2.956]
[1751266270000,1.4985416,653.38,653.12,2.956]
[1751266270398,1.4985416,653.37,653.12,2.956]
[1751266270602,1.4985416,653.38,653.12,2.956]
[1751266270997,1.4985416,653.39,653.12,2.956]
[1751266271597,1.4985416,653.37,653.12,2.956]
[1751266272002,1.4985416,653.38,653.12,2.956]
[1751266272304,1.4985416,653.37,653.12,2.956]
[1751266273204,1.4985416,653.4,653.12,2.956]
[1751266273404,1.4985416,653.39,653.12,2.956]
[1751266273807,1.4985416,653.35,653.12,2.956]
[1751266274204,1.4985416,653.36,653.12,2.956]
[1751266274407,1.4985416,653.37,653.12,2.956]
[1751266274604,1.4985416,653.39,653.12,2.956]
[1751266275404,1.4985416,653.4,653.12,2.956]
[1751266275608,1.4985416,653.49,653.12,2.956]
[1751266275804,1.4985416,653.5,653.12,2.956]
[1751266276009,1.4985416,653.51,653.12,2.956]
[1751266276205,1.4985416,653.52,653.12,2.956]
[1751266276508,1.4985416,653.51,653.12,2.956]
[1751266278410,1.4985416,653.52,653.12,2.956]
[1751266279812,1.4985416,653.51,653.12,2.956]
[1751266280213,1.4985416,653.56,653.12,2.956]
[1751266280411,1.4985416,653.57,653.12,2.956]
[1751266281909,1.4985416,653.56,653.12,2.956]
[1751266282316,1.4985416,653.57,653.12,2.956]
[1751266283215,1.4985416,653.58,653.12,2.956]
[1751266283515,1.4985416,653.57,653.12,2.956]
[1751266284316,1.4985416,653.56,653.12,2.956]
[1751266284517,1.4985416,653.6,653.12,2.956]
[1751266285715,1.4985416,653.59,653.12,2.956]
[1751266286017,1.4985416,653.6,653.12,2.956]
[1751266286519,1.4985416,653.61,653.12,2.956]
[1751266288520,1.4985416,653.62,653.12,2.956]
[1751266289819,1.4985416,653.58,653.12,2.956]
[1751266290019,1.4985416,653.56,653.13,0.616]
[1751266290216,1.4985416,653.56,653.13,4.443]
[1751266290418,1.4985416,653.57,653.13,4.443]
[1751266290716,1.4985416,653.56,653.13,4.443]
[1751266293019,1.4985416,653.54,653.13,4.443]
[1751266293618,1.4985416,653.58,653.13,4.443]
[1751266294231,1.4985416,653.57,653.13,4.443]
[1751266294824,1.4985416,653.56,653.13,4.443]
[1751266295324,1.4985416,653.52,653.13,4.443]
[1751266295624,1.4985416,653.53,653.13,4.443]
[1751266296231,1.4985416,653.48,653.13,4.443]
[1751266296421,1.4985416,653.48,653.14,3.811]
[1751266296621,1.4985416,653.49,653.14,3.811]
[1751266297425,1.4985416,653.45,653.14,3.811]
[1751266297620,1.4985416,653.43,653.14,3.811]
[1751266298122,1.4985416,653.4,653.14,3.811]
[1751266298326,1.4985416,653.39,653.14,3.811]
[1751266298728,2.2478241,653.52,653.14,3.811]
[1751266298729,1.4985416,653.44,653.14,3.811]
[1751266299423,1.4985416,653.46,653.14,3.811]
[1751266300126,1.4985416,653.47,653.14,3.811]
[1751266300628,1.4985416,653.44,653.14,3.811]
[1751266301325,1.4985416,653.5,653.14,3.811]
[1751266301527,1.4985416,653.49,653.14,3.811]
[1751266301735,1.4985416,653.42,653.14,3.811]
[1751266302027,1.4985416,653.43,653.14,3.811]
[1751266302337,1.4985416,653.41,653.14,3.811]
[1751266303137,1.4985416,653.49,653.14,3.811]
[1751266303337,1.4985416,653.48,653.14,3.811]
[1751266303531,1.4985416,653.49,653.14,3.811]
[1751266303728,1.4985416,653.43,653.14,3.811]
[1751266304038,1.4985416,653.42,653.14,3.811]
[1751266304229,1.4985416,653.41,653.14,3.811]
[1751266304438,1.4985416,653.4,653.14,3.811]
[1751266305032,1.4985416,653.37,653.14,3.811]
[1751266305241,1.4985416,653.32,653.14,3.811]
[1751266305434,0.26635745,653.94,653.14,3.811]
[1751266305435,1.4985416,653.27,653.14,3.811]
[1751266305735,1.4985416,653.22,653.14,3.811]
[1751266305929,1.4985416,653.2,653.14,3.811]
[1751266306128,1.4985416,653.17,653.14,3.811]
[1751266306333,1.4985416,653.2,653.14,3.811]
[1751266306630,1.4985416,653.18,653.14,3.811]
[1751266307030,1.4985416,653.16,653.14,3.811]
[1751266307533,2.2478241,653.28,653.14,3.811]
[1751266308134,2.2478241,653.29,653.14,3.811]
[1751266308332,1.510869,653.17,653.14,3.811]
[1751266308531,1.510869,653.16,653.14,3.811]
[1751266308732,1.510869,653.17,653.14,3.811]
[1751266308935,1.510869,653.22,653.14,3.811]
[1751266309231,1.510869,653.23,653.14,3.811]
[1751266309436,1.510869,653.24,653.14,3.811]
[1751266309738,1.510869,653.26,653.14,3.811]
[1751266309932,1.510869,653.25,653.14,3.811]
[1751266310230,1.510869,653.26,653.14,3.811]
[1751266311332,0.26635745,653.94,653.14,3.811]
[1751266311333,1.510869,653.23,653.14,3.811]
[1751266311532,0.26635745,653.94,653.14,3.811]
[1751266311533,1.510869,653.17,653.14,3.811]
[1751266311732,2.2478241,653.32,653.14,3.811]
[1751266311934,2.2478241,653.3,653.14,3.811]
[1751266312437,1.5083279,653.15,653.14,3.811]
[1751266313137,1.5083279,653.16,653.14,3.811]
[1751266313438,2.2478241,653.25,653.14,3.811]
[1751266313635,2.2478241,653.19,653.14,3.811]
[1751266314334,2.2478241,653.2,653.14,3.811]
[1751266314539,2.2478241,653.22,653.14,3.811]
[1751266314936,1.5072262,653.15,653.14,3.811]
[1751266315439,1.5072262,653.17,653.14,3.811]
[1751266315836,1.5072262,653.16,653.14,3.811]
[1751266316435,1.5072262,653.18,653.14,3.811]
[1751266316636,1.5072262,653.19,653.14,3.811]
[1751266316837,1.5072262,653.18,653.14,3.811]
[1751266317039,1.5072262,653.19,653.14,3.811]
[1751266317240,1.5072262,653.21,653.14,3.811]
[1751266317537,1.5072262,653.23,653.14,3.811]
[1751266317736,1.5072262,653.2,653.14,3.811]
[1751266318241,1.5072262,653.22,653.14,3.811]
[1751266319043,1.5072262,653.23,653.14,3.811]
[1751266319944,1.5072262,653.24,653.14,3.811]
[1751266320143,1.5072262,653.22,653.14,3.811]
[1751266320444,1.5072262,653.21,653.14,3.811]
[1751266320937,0.26635745,653.94,653.14,3.811]
[1751266320938,1.5072262,653.23,653.14,3.811]
[1751266321145,1.5072262,653.24,653.14,3.811]
[1751266321340,1.5072262,653.25,653.14,3.811]
[1751266322146,1.5072262,653.26,653.14,3.811]
[1751266323042,1.5072262,653.27,653.14,3.811]
[1751266323248,0.26635745,653.94,653.14,3.811]
[1751266323249,1.5072262,653.35,653.14,3.811]
[1751266323447,1.5072262,653.37,653.14,3.811]
[1751266324450,1.5072262,653.48,653.14,3.811]
[1751266324647,1.5072262,653.56,653.14,3.811]
[1751266325348,1.5072262,653.56,653.08,4.056]
[1751266325648,1.5072262,653.53,653.08,4.056]
[1751266325847,1.5072262,653.51,653.08,4.056]
[1751266326345,1.5072262,653.46,653.08,4.056]
[1751266326744,1.5072262,653.57,653.08,4.056]
[1751266327643,1.5072262,653.55,653.09,0.616]
[1751266327848,1.5072262,653.6,653.09,0.616]
[1751266328145,1.5072262,653.55,653.09,0.616]
[1751266328445,1.5072262,653.56,653.09,0.616]
[1751266328649,1.5072262,653.45,653.1,3.827]
[1751266329150,1.5072262,653.44,653.1,3.827]
[1751266329446,1.5072262,653.46,653.1,3.827]
[1751266329853,1.5072262,653.48,653.1,3.827]
[1751266330050,0.26635745,653.94,653.1,3.827]
[1751266330051,1.5072262,653.6,653.1,3.827]
[1751266330448,1.5072262,653.64,653.1,3.827]
[1751266330851,1.5072262,653.65,653.1,3.827]
[1751266332052,0.26635745,653.94,653.1,3.827]
[1751266332053,1.5072262,653.67,653.1,3.827]
[1751266332548,1.5072262,653.68,653.1,3.827]
[1751266332749,1.5072262,653.69,653.1,3.827]
[1751266334053,1.5072262,653.73,653.1,3.827]
[1751266335055,1.5072262,653.8,653.1,3.827]
[1751266335351,1.5072262,653.81,653.1,3.827]
[1751266335553,0.26635745,653.94,653.1,3.827]
[1751266336650,1.5072262,653.92,653.1,3.827]
[1751266336853,0.26635745,653.94,653.1,3.827]
[1751266342762,0.26635745,653.94,653.11,4.181]
[1751266343862,1.5072262,654.21,653.11,4.181]
[1751266344060,0.26625046,654.02,653.11,4.181]
[1751266344963,1.5072262,654.49,653.11,4.181]
[1751266345161,1.5072262,654.53,653.11,4.181]
[1751266345361,0.26621787,654.11,653.12,3.695]
[1751266345560,1.5072262,654.59,653.12,3.695]
[1751266345764,0.26617715,654.17,653.12,3.695]
[1751266349367,0.26617715,654.17,653.13,2.99]
[1751266351766,0.26617715,654.17,653.14,3.827]
[1751266351969,0.26617715,654.17,653.15,0.617]
[1751266353369,0.26617715,654.17,653.16,3.827]
[1751266368284,0.26458446,654.21,653.16,3.827]
[1751266368782,0.26424292,654.25,653.16,3.827]
[1751266370285,0.26620362,668.3,653.16,3.827]
[1751266372584,0.26620362,668.3,653.17,3.401]
[1751266372787,0.26620362,668.3,653.17,6.389]
[1751266376988,0.26620362,668.3,653.12,3.695]
[1751266379995,0.26620362,668.3,652.11,0.55626256]
[1751266380191,0.26620362,668.3,652.12,0.55626256]
[1751266380395,0.26620362,668.3,652.13,0.55626256]
[1751266380694,0.26620362,668.3,652.14,0.55626256]
[1751266380895,0.26620362,668.3,652.15,0.55626256]
[1751266381094,0.26620362,668.3,652.16,0.55626256]
[1751266381296,0.26620362,668.3,652.17,0.55626256]
[1751266381492,0.26620362,668.3,652.18,0.55626256]
[1751266381792,0.26620362,668.3,652.19,0.55626256]
[1751266382097,2.247132,654.75,652.95,1.1293513]
[1751266382296,2.247132,654.72,652.97,1.1293513]
[1751266382496,1.498088,654.59,652.98,0.55626256]
[1751266382699,1.498088,654.56,652.98,0.55626256]
[1751266383199,1.498088,654.53,652.99,1.1293513]
[1751266383395,1.498088,654.53,653.0,0.55626256]
[1751266383601,1.498088,654.03,653.0,0.55626256]
[1751266383895,1.498088,654.03,652.49,1.1293513]
[1751266383896,1.498088,654.03,653.01,0.5573055]
[1751266384099,1.498088,654.03,653.02,0.5573055]
[1751266384301,1.498088,654.01,653.03,0.5573055]
[1751266384596,1.498088,654.01,653.04,0.5573055]
[1751266384896,1.498088,654.01,652.51,1.1293513]
[1751266385100,1.498088,654.01,652.52,0.55751392]
[1751266385296,5.2433081,655.15,652.53,0.55751392]
[1751266385297,1.498088,653.99,652.53,0.55751392]
[1751266385498,1.498088,653.99,652.54,0.55751392]
[1751266385801,1.498088,653.94,652.55,0.55751392]
[1751266386002,1.498088,653.94,652.56,0.55751392]
[1751266386203,1.498088,653.92,652.57,0.55751392]
[1751266386398,1.498088,653.91,652.58,0.55751392]
[1751266386599,1.498088,653.91,652.59,0.55751392]
[1751266386803,1.498088,653.91,652.49,0.55751392]
[1751266387100,3.74522,654.72,652.49,1.68686522]
[1751266387101,1.498088,653.88,652.49,1.68686522]
[1751266387301,1.498088,653.88,652.5,0.55751392]
[1751266387505,1.498088,653.86,652.5,1.68686522]
[1751266387705,1.498088,653.86,652.51,0.55751392]
[1751266387999,1.498088,653.88,652.51,0.55751392]
[1751266388204,1.498088,653.84,652.52,0.55751392]
[1751266389208,1.498088,653.8,652.52,1.68686522]
[1751266389408,1.498088,653.79,652.53,0.55751392]
[1751266390212,1.498088,653.77,652.53,1.68686522]
[1751266390507,1.498088,653.76,652.54,0.55751392]
[1751266390905,1.498088,653.73,652.56,1.1293513]
[1751266391109,1.498088,653.73,651.57,3.7645045]
[1751266391110,1.498088,653.69,652.58,1.1293513]
[1751266391310,1.498088,653.69,652.59,0.55751392]
[1751266391909,1.498088,653.69,652.59,1.68686522]
[1751266392109,1.498088,653.66,652.6,0.55751392]
[1751266392406,1.498088,653.66,652.6,1.68686522]
[1751266392606,1.498088,653.66,652.61,0.55751392]
[1751266393305,1.498088,653.63,652.62,0.55751392]
[1751266393505,1.498088,654.29,653.26,1.1293513]
[1751266393712,1.498088,654.28,653.27,1.1293513]
[1751266394211,1.498088,654.24,653.28,1.1293513]
[1751266394806,1.498088,654.24,653.29,0.56041234]
[1751266395004,1.498088,654.24,653.3,0.56041234]
[1751266395204,1.498088,654.19,653.31,0.56041234]
[1751266395406,1.498088,654.19,653.32,0.56041234]
[1751266395608,1.498088,654.19,653.33,0.56041234]
[1751266395805,1.498088,654.18,653.34,0.56041234]
[1751266396106,1.498088,654.16,653.35,0.56041234]
[1751266396309,1.498088,654.16,653.36,0.56041234]
[1751266396509,1.498088,654.16,653.37,0.56041234]
[1751266396805,1.498088,654.16,653.38,0.56041234]
[1751266397009,1.498088,654.16,653.39,0.56041234]
[1751266397210,1.498088,654.16,653.4,0.56041234]
[1751266397410,1.498088,654.15,653.41,0.56041234]
[1751266397605,1.498088,654.15,653.42,0.56041234]
[1751266397906,1.498088,654.31,653.43,0.56041234]
[1751266398111,1.498088,654.31,653.44,0.56041234]
[1751266398311,1.498088,654.3,653.45,0.56041234]
[1751266398511,1.498088,654.3,653.46,0.56041234]
[1751266398912,1.498088,654.3,653.21,1.1293513]
[1751266399113,1.498088,654.3,653.2,1.1293513]
[1751266399314,1.498088,654.28,653.21,1.1293513]
[1751266399510,1.498088,654.29,653.21,1.1293513]
[1751266399914,1.498088,654.28,653.22,1.1293513]
[1751266400110,1.498088,654.28,653.22,4.4883513]
[1751266400312,1.498088,654.47,653.42,1.1293513]
[1751266401116,1.498088,654.46,653.43,1.1293513]
[1751266401313,1.498088,654.47,653.42,1.1293513]
[1751266401512,1.498088,654.47,653.43,1.1293513]
[1751266402214,1.498088,654.46,653.44,1.69114862]
[1751266402513,1.498088,654.44,653.45,1.69114862]
[1751266402712,1.498088,654.44,653.46,0.56179732]
[1751266402916,1.498088,654.44,653.47,0.56179732]
[1751266403117,1.498088,654.44,653.48,0.56179732]
[1751266403312,1.498088,654.44,653.49,0.56179732]
[1751266403512,1.498088,654.4,653.5,0.56179732]
[1751266403816,3.74522,655.4,653.51,6.21579732]
[1751266403817,1.498088,654.35,653.51,6.21579732]
[1751266404016,1.498088,654.35,653.52,0.56179732]
[1751266404217,1.498088,654.35,653.53,0.56179732]
[1751266404518,1.498088,654.35,653.54,0.56179732]
[1751266404711,1.498088,654.35,653.55,0.56179732]
[1751266404912,1.498088,654.35,653.56,0.56179732]
[1751266405211,1.498088,654.36,653.57,0.56179732]
[1751266405512,1.498088,654.36,653.58,0.56179732]
[1751266405717,1.498088,654.36,653.59,0.56179732]
[1751266405911,1.498088,654.35,653.6,0.56179732]
[1751266406115,1.498088,654.35,653.61,0.56179732]
[1751266406314,1.498088,654.36,653.62,0.56179732]
[1751266406513,3.74522,655.19,653.63,0.56179732]
[1751266406514,1.498088,654.35,653.63,0.56179732]
[1751266406719,1.498088,654.34,653.64,0.56179732]
[1751266406919,1.498088,654.34,653.65,0.56179732]
[1751266407120,1.498088,654.34,653.66,0.56179732]
[1751266407316,3.74522,655.12,653.67,0.56179732]
[1751266407317,1.498088,654.3,653.67,0.56179732]
[1751266407620,1.498088,654.3,653.68,0.56179732]
[1751266407820,1.498088,654.3,653.69,0.56179732]
[1751266408120,1.498088,654.29,653.7,0.56179732]
[1751266408320,1.498088,654.29,653.71,0.56179732]
[1751266408521,1.498088,654.29,653.72,0.56179732]
[1751266408723,1.498088,654.29,653.73,0.56179732]
[1751266408919,1.498088,654.29,653.74,0.56179732]
[1751266409122,1.498088,654.29,653.75,0.56179732]
[1751266409320,1.498088,654.3,653.76,0.56179732]
[1751266409524,1.498088,654.3,653.77,0.56179732]
[1751266409725,1.498088,654.37,653.52,0.56179732]
[1751266410024,1.498088,654.37,653.53,0.56179732]
[1751266410324,1.498088,654.38,653.54,0.56179732]
[1751266410624,1.498088,654.38,653.55,0.56179732]
[1751266410822,1.498088,654.38,653.56,0.56179732]
[1751266411026,1.498088,654.38,653.57,0.56179732]
[1751266411224,1.498088,654.38,653.58,0.56179732]
[1751266411527,1.498088,654.38,653.51,5.654]
[1751266411528,1.498088,654.38,653.59,0.56179732]
[1751266411727,1.498088,654.38,653.6,0.56179732]
[1751266411926,1.498088,654.38,653.61,0.56179732]
[1751266412127,1.498088,654.39,653.62,0.56179732]
[1751266412424,1.498088,654.39,653.63,0.56179732]
[1751266412725,1.498088,654.39,653.64,0.56179732]
[1751266412923,1.498088,654.39,653.65,0.56179732]
[1751266413129,1.498088,654.4,653.66,0.56179732]
[1751266413331,1.498088,654.4,653.67,0.56179732]
[1751266413531,1.498088,654.4,653.68,0.56179732]
[1751266413825,1.498088,654.4,653.69,0.56179732]
[1751266414027,1.498088,654.4,653.7,0.56179732]
[1751266414227,1.498088,654.4,653.71,0.56179732]
[1751266414426,1.498088,654.4,653.72,0.56179732]
[1751266414629,1.498088,654.4,653.73,0.56179732]
[1751266414832,1.498088,654.47,653.74,0.56179732]
[1751266415031,1.498088,654.47,653.75,0.56179732]
[1751266415230,1.498088,654.47,653.76,0.56179732]
[1751266415433,1.498088,654.47,653.77,0.56179732]
[1751266415728,1.498088,654.47,653.78,0.56179732]
[1751266415929,1.498088,654.47,653.79,0.56179732]
[1751266416132,1.498088,654.47,653.8,0.56179732]
[1751266416330,1.498088,654.47,653.81,0.56179732]
[1751266416532,1.498088,654.47,653.82,0.56179732]
[1751266416832,1.498088,654.47,653.83,0.56179732]
[1751266417033,1.498088,654.47,653.83,4.26779732]
[1751266417232,1.498088,654.48,653.84,4.49879732]
[1751266417532,1.498088,654.48,653.85,0.56179732]
[1751266417932,1.498088,654.48,653.86,0.615]
[1751266418433,1.498088,654.49,653.86,0.615]
[1751266419730,1.498088,654.46,653.86,0.615]
[1751266420230,1.498088,654.45,653.86,0.615]
[1751266421930,1.498088,654.44,653.86,0.615]
[1751266423933,1.498088,654.48,653.86,0.615]
[1751266424432,1.498088,654.51,653.86,0.615]
[1751266424830,1.498088,654.47,653.86,0.615]
[1751266425229,1.498088,654.46,653.86,0.615]
[1751266425430,7.4904401,655.99,653.86,0.615]
[1751266425431,1.498088,654.34,653.86,0.615]
[1751266425730,1.498088,654.26,653.86,0.615]
[1751266426129,1.498088,654.22,653.86,0.615]
[1751266426432,1.498088,654.21,653.86,0.615]
[1751266427529,1.498088,654.19,653.86,0.615]
[1751266429729,1.498088,654.2,653.86,0.615]
[1751266430333,1.498088,654.21,653.86,0.615]
[1751266430533,1.498088,654.25,653.86,0.615]
[1751266432535,1.498088,654.26,653.86,0.615]
[1751266435236,1.498088,654.25,653.86,0.615]
[1751266435436,1.498088,654.19,653.86,0.615]
[1751266435837,2.247132,654.33,653.86,0.615]
[1751266435838,1.498088,654.17,653.86,0.615]
[1751266436734,1.498088,654.11,653.86,0.615]
[1751266437135,1.498088,654.09,653.86,0.615]
[1751266437340,1.498088,654.1,653.86,0.615]
[1751266438738,1.498088,654.11,653.86,0.615]
[1751266439338,1.498088,654.12,653.86,0.615]
[1751266439739,1.498088,654.08,653.86,0.615]
[1751266442540,1.498088,654.1,653.87,3.414]
[1751266442741,1.498088,654.11,653.87,3.414]
[1751266443245,1.498088,654.1,653.87,3.414]
[1751266443844,1.498088,654.09,653.87,3.414]
[1751266445341,1.498088,654.1,653.87,3.414]
[1751266445541,3.74522,654.77,653.87,3.414]
[1751266445542,1.498088,654.09,653.87,3.414]
[1751266445742,1.498088,654.08,653.87,3.414]
[1751266446443,1.498088,654.09,653.87,3.414]
[1751266446841,1.498088,654.1,653.87,3.414]
[1751266448241,1.498088,654.08,653.87,3.414]
[1751266449848,1.498088,654.02,653.87,3.414]
[1751266450547,1.498088,654.04,653.87,3.414]
[1751266451343,1.498088,654.03,653.87,3.414]
[1751266451644,1.498088,654.05,653.87,3.414]
[1751266452347,1.498088,654.06,653.87,3.414]
[1751266453147,1.498088,654.03,653.87,3.414]
[1751266453344,3.74522,654.76,653.87,3.414]
[1751266453345,1.498088,654.04,653.87,3.414]
[1751266453544,1.498088,654.02,653.87,3.414]
[1751266453747,1.498088,654.01,653.87,3.414]
[1751266453948,1.498088,654.0,653.87,3.414]
[1751266454447,1.498088,654.01,653.87,3.414]
[1751266454644,1.498088,654.0,653.87,3.414]
[1751266455443,3.74522,654.67,653.87,3.414]
[1751266455444,1.498088,654.01,653.87,3.414]
[1751266456046,1.498088,654.02,653.87,3.414]
[1751266456345,1.498088,654.03,653.87,3.414]
[1751266457150,1.498088,654.0,653.87,3.414]
[1751266457347,1.498088,654.01,653.87,3.414]
[1751266457749,1.498088,653.98,653.87,3.414]
[1751266458548,1.498088,653.96,653.87,3.414]
[1751266459454,1.498088,653.97,653.87,3.414]
[1751266459955,1.498088,653.92,653.87,3.414]
[1751266460250,1.498088,653.93,653.87,3.414]
[1751266460549,1.498088,653.94,653.87,3.414]
[1751266461455,1.498088,653.96,653.87,3.414]
[1751266462251,3.74522,654.59,653.87,3.414]
[1751266462252,1.498088,653.97,653.87,3.414]
[1751266462652,1.498088,653.97,653.84,3.937]
[1751266463351,1.498088,653.98,653.84,3.937]
[1751266463556,1.498088,653.97,653.84,3.937]
[1751266463853,1.498088,653.95,653.84,3.937]
[1751266464257,1.498088,653.96,653.84,3.937]
[1751266464557,1.498088,653.97,653.84,3.937]
[1751266465058,1.498088,654.15,653.84,3.937]
[1751266466055,1.498088,654.16,653.84,3.937]
[1751266466258,1.498088,654.2,653.85,2.679]
[1751266468363,1.498088,654.19,653.85,2.679]
[1751266469363,1.498088,654.39,653.85,2.679]
[1751266470063,1.498088,654.4,653.85,2.679]
[1751266470267,1.498088,654.39,653.85,2.679]
[1751266471068,1.498088,654.42,653.85,2.679]